fUST/lending_fUST_20250206
["ID","MTS","AMOUNT","RATE_DAILY","PERIOD"]
[351935034,1738851039878,-2704.32,0.00013698,2]
[351935035,1738851039886,-500.0,0.00013698,2]
[351935036,1738851039896,-2704.32,0.00013698,2]
[351935037,1738851039905,-2704.32,0.00013698,2]
[351935038,1738851039914,-2704.32,0.00013698,2]
[351935039,1738851039923,-2704.32,0.00013698,2]
[351935041,1738851039933,-2704.32,0.00013698,2]
[351935042,1738851039943,-2704.32,0.00013698,2]
[351935043,1738851039958,-2704.32,0.00013698,2]
[351935044,1738851039969,-2704.32,0.00013698,2]
[351935045,1738851039978,-2704.32,0.00013698,2]
[351935046,1738851039989,-2704.32,0.00013698,2]
[351935047,1738851039999,-2704.32,0.00013698,2]
[351935048,1738851040008,-2704.32,0.00013698,2]
[351935049,1738851040018,-2704.32,0.00013698,2]
[351935050,1738851040029,-2704.32,0.00013698,2]
[351935051,1738851040039,-2704.32,0.00013698,2]
[351935052,1738851040052,-2704.3448513,0.00013698,2]
[351935053,1738851040062,-1322.58,0.00013698,2]
[351935055,1738851040073,-500.0,0.00013698,2]
[351935056,1738851040083,-13982.56,0.00013698,2]
[351935057,1738851040093,-500.0,0.00013698,2]
[351935058,1738851040103,-5796.15,0.00013698,2]
[351935059,1738851040113,-500.0,0.00013698,2]
[351935060,1738851040130,-581.44,0.00013698,2]
[351935061,1738851040142,-500.0,0.00013698,2]
[351935062,1738851040156,-500.0,0.00013698,2]
[351935063,1738851040168,-500.0,0.00013698,2]
[351935064,1738851040181,-501.55940245,0.00013698,2]
[351935065,1738851040192,-500.0,0.00013698,2]
[351935066,1738851040204,-500.0,0.00013698,2]
[351935067,1738851040215,-42643.98,0.00013698,2]
[351935068,1738851040227,-500.0,0.00013698,2]
[351935069,1738851040238,-500.0,0.00013698,2]
[351935070,1738851040251,-500.0,0.00013698,2]
[351935071,1738851040263,-1206.68,0.00013698,2]
[351935072,1738851040273,-500.0,0.00013698,2]
[351935073,1738851040283,-500.0,0.00013698,2]
[351935074,1738851040295,-500.64462402,0.00013698,2]
[351935075,1738851040307,-635.58214511,0.00013698,2]
[351935078,1738851040320,-1306.86,0.00013698,2]
[351935079,1738851040335,-1001.84,0.00013698,2]
[351935080,1738851040347,-500.0,0.00013698,2]
[351935081,1738851040359,-500.0,0.00013698,2]
[351935082,1738851040372,-500.0,0.00013698,2]
[351935083,1738851040384,-591.08176997,0.00013698,2]
[351935084,1738851040395,-500.0,0.00013698,2]
[351935085,1738851040405,-500.0,0.00013698,2]
[351935086,1738851040415,-500.0,0.00013698,2]
[351935087,1738851040424,-500.0,0.00013698,2]
[351935088,1738851040433,-500.0,0.00013698,2]
[351935089,1738851040442,-500.0,0.00013698,2]
[351935090,1738851040451,-4363.28,0.00013698,2]
[351935091,1738851040461,-2468.47,0.00013698,2]
[351935092,1738851040470,-500.0,0.00013698,2]
[351935093,1738851040479,-500.0,0.00013698,2]
[351935094,1738851040488,-500.0,0.00013698,2]
[351935095,1738851040497,-500.0,0.00013698,2]
[351935096,1738851040506,-500.0,0.00013698,2]
[351935097,1738851040516,-729.89,0.00013698,2]
[351935098,1738851040525,-500.0,0.00013698,2]
[351935099,1738851040534,-500.0,0.00013698,2]
[351935100,1738851040543,-500.0,0.00013698,2]
[351935101,1738851040552,-500.0,0.00013698,2]
[351935102,1738851040561,-500.0,0.00013698,2]
[351935103,1738851040570,-2320.38,0.00013698,2]
[351935104,1738851040579,-1507.93,0.00013698,2]
[351935105,1738851040588,-500.0,0.00013698,2]
[351935106,1738851040597,-500.0,0.00013698,2]
[351935107,1738851040606,-500.0,0.00013698,2]
[351935108,1738851040615,-1357.54,0.00013698,2]
[351935109,1738851040624,-2135.49,0.00013698,2]
[351935110,1738851040633,-1016.63,0.00013698,2]
[351935111,1738851040643,-500.0,0.00013698,2]
[351935112,1738851040652,-500.0,0.00013698,2]
[351935113,1738851040662,-780.62,0.00013698,2]
[351935114,1738851040671,-296.04528776,0.00013698,2]
[351935115,1738851040680,-500.0,0.00013698,2]
[351935116,1738851040690,-500.0,0.00013698,2]
[351935117,1738851040699,-17470.79,0.00013698,2]
[351935118,1738851040710,-500.0,0.00013698,2]
[351935119,1738851040720,-500.0,0.00013698,2]
[351935120,1738851040729,-3605.2,0.00013698,2]
[351935121,1738851040738,-500.0,0.00013698,2]
[351935122,1738851040747,-500.0,0.00013698,2]
[351935123,1738851040757,-500.0,0.00013698,2]
[351935124,1738851040766,-500.0,0.00013698,2]
[351935125,1738851040775,-500.0,0.00013698,2]
[351935126,1738851040795,-500.0,0.00013698,2]
[351935127,1738851040813,-1602.84,0.00013698,2]
[351935128,1738851040822,-500.0,0.00013698,2]
[351935129,1738851040832,-966.89,0.00013698,2]
[351935130,1738851040842,-644.09,0.00013698,2]
[351935131,1738851040852,-1755.26,0.00013698,2]
[351935132,1738851040861,-500.0,0.00013698,2]
[351935133,1738851040871,-500.0,0.00013698,2]
[351935134,1738851040879,-500.0,0.00013698,2]
[351935135,1738851040889,-3288.75,0.00013698,2]
[351935136,1738851040898,-1867.6,0.00013698,2]
[351935137,1738851040907,-500.0,0.00013698,2]
[351935138,1738851040916,-500.0,0.00013698,2]
[351935139,1738851040925,-500.0,0.00013698,2]
[351935140,1738851040934,-191.40196777,0.00013698,2]
[351935141,1738851040943,-500.0,0.00013698,2]
[351935142,1738851040954,-875.81,0.00013698,2]
[351935143,1738851040966,-500.0,0.00013698,2]
[351935144,1738851040977,-500.0,0.00013698,2]
[351935145,1738851040988,-793.45,0.00013698,2]
[351935146,1738851041000,-500.0,0.00013698,2]
[351935147,1738851041011,-500.0,0.00013698,2]
[351935148,1738851041022,-500.0,0.00013698,2]
[351935149,1738851041035,-9267.35,0.00013698,2]
[351935150,1738851041047,-513.0595766,0.00013698,2]
[351935151,1738851041057,-955.32,0.00013698,2]
[351935152,1738851041067,-500.0,0.00013698,2]
[351935153,1738851041075,-500.0,0.00013698,2]
[351935154,1738851041084,-2160.78,0.00013698,2]
[351935155,1738851041094,-189.47222383,0.00013698,2]
[351935156,1738851041104,-232.91058142,0.00013698,2]
[351935157,1738851041114,-500.0,0.00013698,2]
[351935158,1738851041124,-305.08325812,0.00013698,2]
[351935159,1738851041134,-500.0,0.00013698,2]
[351935160,1738851041143,-500.0,0.00013698,2]
[351935161,1738851041153,-500.0,0.00013698,2]
[351935162,1738851041163,-1470.7,0.00013698,2]
[351935163,1738851041173,-703.94,0.00013698,2]
[351935164,1738851041183,-500.0,0.00013698,2]
[351935165,1738851041193,-500.0,0.00013698,2]
[351935166,1738851041203,-500.0,0.00013698,2]
[351935167,1738851041213,-942.92,0.00013698,2]
[351935168,1738851041222,-500.0,0.00013698,2]
[351935169,1738851041231,-1410.06,0.00013698,2]
[351935170,1738851041240,-500.0,0.00013698,2]
[351935171,1738851041251,-500.0,0.00013698,2]
[351935172,1738851041259,-500.0,0.00013698,2]
[351935173,1738851041268,-500.0,0.00013698,2]
[351935174,1738851041277,-437.834394,0.00013699,2]
[351935175,1738851041287,-8313.2320795,0.00013699,2]
[351935176,1738851041296,-1922.898203,0.00013699,2]
[351935177,1738851041306,-200.6926653,0.00013699,2]
[351935178,1738851041315,-500.0,0.00013699,2]
[351935179,1738851041325,-500.0,0.00013699,2]
[351935180,1738851041335,-500.0,0.00013699,2]
[351935181,1738851041344,-500.0,0.00013699,2]
[351935182,1738851041354,-432.18723181,0.00013699,2]
[351935183,1738851041364,-500.0,0.00013699,2]
[351935184,1738851041374,-500.0,0.00013699,2]
[351935185,1738851041383,-500.0,0.00013699,2]
[351935186,1738851041393,-500.0,0.00013699,2]
[351935187,1738851041402,-500.0,0.00013699,2]
[351935188,1738851041412,-500.0,0.00013699,2]
[351935189,1738851041422,-500.0,0.00013699,2]
[351935190,1738851041432,-500.0,0.00013699,2]
[351935191,1738851041442,-500.0,0.00013699,2]
[351935192,1738851041451,-454.79148781,0.00013699,2]
[351935193,1738851041462,-2216.09361586,0.00013699,2]
[351935194,1738851041471,-500.0,0.00013699,2]
[351935195,1738851041481,-2216.09361586,0.00013699,2]
[351935196,1738851041491,-2216.09361586,0.00013699,2]
[351935197,1738851041501,-2216.09361586,0.00013699,2]
[351935198,1738851041511,-2216.09361586,0.00013699,2]
[351935199,1738851041520,-2216.09361586,0.00013699,2]
[351935200,1738851041530,-2216.09361586,0.00013699,2]
[351935201,1738851041540,-2216.09361586,0.00013699,2]
[351935202,1738851041549,-2216.09361586,0.00013699,2]
[351935203,1738851041558,-2216.09361586,0.00013699,2]
[351935204,1738851041567,-500.0,0.00013699,2]
[351935205,1738851041576,-500.0,0.00013699,2]
[351935206,1738851041585,-401.69871018,0.00013699,2]
[351935207,1738851041595,-153.87,0.000137,2]
[351935208,1738851041605,-153.87,0.000137,2]
[351935209,1738851041615,-153.87,0.000137,2]
[351935210,1738851041624,-153.87,0.000137,2]
[351935211,1738851041634,-153.87,0.000137,2]
[351935212,1738851041643,-153.87,0.000137,2]
[351935213,1738851041652,-153.87,0.000137,2]
[351935214,1738851041661,-153.87,0.000137,2]
[351935215,1738851041670,-153.87,0.000137,2]
[351935216,1738851041680,-153.87,0.000137,2]
[351935217,1738851041689,-153.87,0.000137,2]
[351935218,1738851041699,-153.87,0.000137,2]
[351935219,1738851041708,-153.87,0.000137,2]
[351935220,1738851041719,-237.99775959,0.00013701,2]
[351935221,1738851041728,-164.792777,0.0001372,3]
[351935222,1738851041737,-152.0,0.00013722,2]
[351935223,1738851041747,-237.99775959,0.00013804,2]
[351935224,1738851041757,-500.0,0.00013834,2]
[351935225,1738851041768,-236.01426072,0.00013834,2]
[351935226,1738851041778,-500.0,0.00013834,2]
[351935227,1738851041788,-643.34571589,0.00013834,2]
[351935228,1738851041798,-500.0,0.00013835,2]
[351935229,1738851041808,-500.0,0.00013835,2]
[351935230,1738851041818,-500.0,0.00013835,2]
[351935231,1738851041827,-500.0,0.00013835,2]
[351935232,1738851041838,-711.94,0.00013835,2]
[351935233,1738851041847,-500.0,0.00013835,2]
[351935234,1738851041858,-500.0,0.00013835,2]
[351935235,1738851041868,-500.0,0.00013835,2]
[351935236,1738851041878,-500.0,0.00013835,2]
[351935237,1738851042054,-500.0,0.00013835,2]
[351935238,1738851042064,-500.0,0.00013835,2]
[351935239,1738851042074,-500.0,0.00013835,2]
[351935240,1738851042084,-647.74345527,0.00013835,2]
[351935241,1738851042093,-500.0,0.00013835,2]
[351935242,1738851042103,-500.0,0.00013835,2]
[351935243,1738851042112,-500.0,0.00013835,2]
[351935244,1738851042121,-500.0,0.00013835,2]
[351935245,1738851042131,-755.1,0.00013835,2]
[351935246,1738851042141,-500.0,0.00013835,2]
[351935247,1738851042151,-500.0,0.00013835,2]
[351935248,1738851042160,-500.0,0.00013835,2]
[351935249,1738851042169,-1000.0,0.00013835,2]
[351935250,1738851042178,-500.0,0.00013835,2]
[351935251,1738851042188,-500.0,0.00013835,2]
[351935252,1738851042198,-525.19,0.00013835,2]
[351935253,1738851042207,-514.66767811,0.00013835,2]
[351935254,1738851042219,-500.0,0.00013835,2]
[351935255,1738851042229,-500.0,0.00013835,2]
[351935256,1738851042238,-500.0,0.00013835,2]
[351935257,1738851042247,-1512.68,0.00013835,2]
[351935258,1738851042255,-500.0,0.00013835,2]
[351935259,1738851042264,-500.0,0.00013835,2]
[351935260,1738851042273,-500.0,0.00013835,2]
[351935261,1738851042282,-500.0,0.00013835,2]
[351935262,1738851042291,-500.0,0.00013835,2]
[351935263,1738851042300,-500.0,0.00013835,2]
[351935264,1738851042310,-500.0,0.00013835,2]
[351935265,1738851042319,-500.0,0.00013835,2]
[351935266,1738851042329,-500.0,0.00013835,2]
[351935267,1738851042339,-500.0,0.00013835,2]
[351935268,1738851042348,-289.81833978,0.00013835,2]
[351935269,1738851042358,-500.0,0.00013835,2]
[351935270,1738851042368,-500.0,0.00013835,2]
[351935271,1738851042378,-500.0,0.00013835,2]
[351935272,1738851042387,-255.37899996,0.00013835,2]
[351935273,1738851042397,-500.0,0.00013835,2]
[351935274,1738851042406,-587.09,0.00013835,2]
[351935275,1738851042417,-500.0,0.00013835,2]
[351935276,1738851042427,-500.0,0.00013835,2]
[351935277,1738851042436,-551.24665482,0.00013835,2]
[351935278,1738851042446,-326.36614169,0.00013835,2]
[351935279,1738851042455,-500.0,0.00013835,2]
[351935280,1738851042467,-500.0,0.00013835,2]
[351935281,1738851042476,-500.0,0.00013835,2]
[351935282,1738851042486,-868.38,0.00013835,2]
[351935283,1738851042495,-500.0,0.00013835,2]
[351935284,1738851042504,-500.0,0.00013835,2]
[351935285,1738851042514,-500.0,0.00013835,2]
[351935286,1738851042523,-500.0,0.00013835,2]
[351935287,1738851042532,-500.0,0.00013835,2]
[351935288,1738851042542,-514.18177375,0.00013835,2]
[351935289,1738851042551,-500.0,0.00013835,2]
[351935290,1738851042560,-775.95,0.00013835,2]
[351935291,1738851042569,-500.0,0.00013835,2]
[351935292,1738851042579,-500.0,0.00013835,2]
[351935293,1738851042588,-614.51,0.00013835,2]
[351935294,1738851042597,-500.0,0.00013835,2]
[351935295,1738851042606,-500.0,0.00013835,2]
[351935296,1738851042616,-178.22823847,0.00013835,2]
[351935298,1738851042625,-538.7,0.00013835,2]
[351935299,1738851042635,-500.0,0.00013835,2]
[351935301,1738851042643,-500.0,0.00013835,2]
[351935302,1738851042653,-500.0,0.00013835,2]
[351935305,1738851042662,-500.0,0.00013835,2]
[351935307,1738851042671,-500.0,0.00013835,2]
[351935308,1738851042680,-500.0,0.00013835,2]
[351935309,1738851042689,-884.55,0.00013835,2]
[351935310,1738851042698,-500.0,0.00013835,2]
[351935311,1738851042708,-500.0,0.00013835,2]
[351935313,1738851042718,-500.0,0.00013835,2]
[351935314,1738851042728,-500.0,0.00013835,2]
[351935315,1738851042737,-500.0,0.00013835,2]
[351935316,1738851042747,-1182.74,0.00013835,2]
[351935317,1738851042757,-500.0,0.00013835,2]
[351935318,1738851042766,-500.0,0.00013835,2]
[351935319,1738851042776,-500.0,0.00013835,2]
[351935320,1738851042784,-500.0,0.00013835,2]
[351935321,1738851042794,-500.0,0.00013835,2]
[351935322,1738851042803,-500.0,0.00013835,2]
[351935323,1738851042813,-500.0,0.00013835,2]
[351935324,1738851042822,-500.0,0.00013835,2]
[351935325,1738851042831,-500.0,0.00013835,2]
[351935326,1738851042840,-500.0,0.00013835,2]
[351935327,1738851042850,-500.0,0.00013835,2]
[351935328,1738851042859,-500.0,0.00013835,2]
[351935329,1738851042869,-500.0,0.00013835,2]
[351935330,1738851042878,-500.0,0.00013835,2]
[351935331,1738851042889,-500.0,0.00013835,2]
[351935332,1738851042902,-500.0,0.00013835,2]
[351935333,1738851042913,-500.0,0.00013835,2]
[351935334,1738851042923,-500.0,0.00013835,2]
[351935335,1738851042933,-501.84516119,0.00013835,2]
[351935336,1738851042943,-500.0,0.00013835,2]
[351935337,1738851042954,-500.0,0.00013835,2]
[351935338,1738851042967,-500.0,0.00013835,2]
[351935339,1738851042976,-500.0,0.00013835,2]
[351935340,1738851042986,-500.0,0.00013835,2]
[351935341,1738851042997,-621.75,0.00013835,2]
[351935342,1738851043007,-1597.37,0.00013835,2]
[351935343,1738851043017,-500.0,0.00013835,2]
[351935344,1738851043027,-500.0,0.00013835,2]
[351935346,1738851043036,-503.33115944,0.00013835,2]
[351935347,1738851043046,-1708.57,0.00013835,2]
[351935348,1738851043056,-500.0,0.00013835,2]
[351935349,1738851043066,-500.0,0.00013835,2]
[351935350,1738851043076,-500.0,0.00013835,2]
[351935351,1738851043085,-500.0,0.00013835,2]
[351935352,1738851043095,-500.0,0.00013835,2]
[351935353,1738851043104,-504.1575931,0.00013835,2]
[351935354,1738851043116,-500.0,0.00013835,2]
[351935355,1738851043126,-500.0,0.00013835,2]
[351935356,1738851043135,-500.0,0.00013835,2]
[351935357,1738851043145,-500.0,0.00013835,2]
[351935358,1738851043155,-519.94,0.00013835,2]
[351935359,1738851043166,-500.0,0.00013835,2]
[351935360,1738851043175,-500.0,0.00013835,2]
[351935361,1738851043185,-449.46208928,0.00013835,2]
[351935362,1738851043195,-500.0,0.00013835,2]
[351935363,1738851043205,-500.0,0.00013835,2]
[351935364,1738851043215,-500.0,0.00013835,2]
[351935365,1738851043225,-500.0,0.00013835,2]
[351935366,1738851043235,-1191.99,0.00013835,2]
[351935368,1738851043245,-500.0,0.00013835,2]
[351935369,1738851043255,-787.55,0.00013835,2]
[351935370,1738851043264,-4473.78,0.00013835,2]
[351935371,1738851043274,-961.53,0.00013835,2]
[351935372,1738851043283,-500.0,0.00013835,2]
[351935373,1738851043293,-530.97,0.00013835,2]
[351935374,1738851043302,-1808.26,0.00013835,2]
[351935375,1738851043312,-1407.66,0.00013835,2]
[351935376,1738851043322,-518.63325424,0.00013835,2]
[351935377,1738851043332,-796.22,0.00013835,2]
[351935378,1738851043342,-942.47,0.00013835,2]
[351935379,1738851043352,-500.0,0.00013835,2]
[351935380,1738851043361,-500.0,0.00013835,2]
[351935381,1738851043371,-637.05,0.00013835,2]
[351935382,1738851043381,-3347.65,0.00013835,2]
[351935383,1738851043391,-500.0,0.00013835,2]
[351935384,1738851043400,-500.0,0.00013835,2]
[351935385,1738851043409,-1987.36,0.00013835,2]
[351935386,1738851043419,-500.0,0.00013835,2]
[351935387,1738851043429,-826.82,0.00013835,2]
[351935388,1738851043438,-500.0,0.00013835,2]
[351935389,1738851043447,-500.0,0.00013835,2]
[351935390,1738851043457,-833.85,0.00013835,2]
[351935391,1738851043468,-3687.18,0.00013835,2]
[351935392,1738851043477,-500.0,0.00013835,2]
[351935393,1738851043486,-500.0,0.00013835,2]
[351935394,1738851043495,-1535.57,0.00013835,2]
[351935395,1738851043505,-500.0,0.00013835,2]
[351935396,1738851043515,-922.33,0.00013835,2]
[351935397,1738851043524,-500.0,0.00013835,2]
[351935398,1738851043534,-500.0,0.00013835,2]
[351935399,1738851043544,-500.0,0.00013835,2]
[351935400,1738851043553,-666.57,0.00013835,2]
[351935401,1738851043563,-1015.56,0.00013835,2]
[351935402,1738851043572,-500.0,0.00013835,2]
[351935403,1738851043581,-500.0,0.00013835,2]
[351935404,1738851043591,-500.0,0.00013835,2]
[351935405,1738851043601,-1287.38,0.00013835,2]
[351935406,1738851043610,-500.0,0.00013835,2]
[351935407,1738851043620,-500.0,0.00013835,2]
[351935408,1738851043631,-500.0,0.00013835,2]
[351935409,1738851043641,-500.0,0.00013835,2]
[351935410,1738851043651,-500.0,0.00013835,2]
[351935411,1738851043661,-500.0,0.00013835,2]
[351935412,1738851043671,-3126.78,0.00013835,2]
[351935413,1738851043680,-500.0,0.00013835,2]
[351935414,1738851043690,-500.0,0.00013835,2]
[351935415,1738851043699,-500.0,0.00013835,2]
[351935416,1738851043709,-500.0,0.00013835,2]
[351935417,1738851043720,-500.0,0.00013835,2]
[351935418,1738851043730,-500.0,0.00013835,2]
[351935419,1738851043739,-500.0,0.00013835,2]
[351935420,1738851043750,-6963.41,0.00013835,2]
[351935421,1738851043759,-500.0,0.00013835,2]
[351935422,1738851043769,-500.0,0.00013835,2]
[351935423,1738851043779,-1200.01,0.00013835,2]
[351935424,1738851043788,-500.0,0.00013835,2]
[351935425,1738851043798,-500.0,0.00013835,2]
[351935426,1738851043808,-1065.19,0.00013835,2]
[351935427,1738851043818,-500.0,0.00013835,2]
[351935428,1738851043827,-1322.58,0.00013835,2]
[351935429,1738851043837,-500.0,0.00013835,2]
[351935430,1738851043846,-13982.56,0.00013835,2]
[351935431,1738851043856,-5796.15,0.00013835,2]
[351935432,1738851043865,-500.0,0.00013835,2]
[351935433,1738851043875,-581.44,0.00013835,2]
[351935434,1738851043884,-500.0,0.00013835,2]
[351935435,1738851043893,-500.0,0.00013835,2]
[351935436,1738851043903,-394.00457614,0.00013835,2]
[351935437,1738851043915,-500.0,0.00013835,2]
[351935438,1738851043924,-500.0,0.00013835,2]
[351935439,1738851043935,-42643.98,0.00013835,2]
[351935440,1738851043945,-274.40048507,0.00013835,2]
[351935441,1738851043957,-500.0,0.00013835,2]
[351935442,1738851043968,-500.0,0.00013835,2]
[351935443,1738851043978,-1206.68,0.00013835,2]
[351935444,1738851043988,-500.0,0.00013835,2]
[351935445,1738851043998,-1306.86,0.00013835,2]
[351935446,1738851044008,-1001.84,0.00013835,2]
[351935447,1738851044017,-500.0,0.00013835,2]
[351935448,1738851044027,-500.0,0.00013835,2]
[351935449,1738851044038,-4363.28,0.00013835,2]
[351935450,1738851044048,-2468.47,0.00013835,2]
[351935451,1738851044057,-500.0,0.00013835,2]
[351935452,1738851044067,-500.0,0.00013835,2]
[351935453,1738851044076,-500.0,0.00013835,2]
[351935454,1738851044085,-729.89,0.00013835,2]
[351935455,1738851044095,-2320.38,0.00013835,2]
[351935456,1738851044104,-1507.93,0.00013835,2]
[351935457,1738851044119,-500.0,0.00013835,2]
[351935458,1738851044128,-500.0,0.00013835,2]
[351935459,1738851044138,-500.0,0.00013835,2]
[351935460,1738851044148,-1357.54,0.00013835,2]
[351935461,1738851044158,-2135.49,0.00013835,2]
[351935462,1738851044168,-1016.63,0.00013835,2]
[351935463,1738851044177,-217.36080263,0.00013835,2]
[351935464,1738851044187,-500.0,0.00013835,2]
[351935465,1738851044196,-780.62,0.00013835,2]
[351935466,1738851044206,-17470.79,0.00013835,2]
[351935467,1738851044216,-500.0,0.00013835,2]
[351935468,1738851044225,-500.0,0.00013835,2]
[351935469,1738851044235,-3605.2,0.00013835,2]
[351935470,1738851044244,-252.43782814,0.00013835,2]
[351935471,1738851044253,-500.0,0.00013835,2]
[351935472,1738851044263,-500.0,0.00013835,2]
[351935473,1738851044272,-500.0,0.00013835,2]
[351935474,1738851044282,-500.0,0.00013835,2]
[351935475,1738851044292,-1602.84,0.00013835,2]
[351935476,1738851044301,-449.72302827,0.00013835,2]
[351935477,1738851044311,-966.89,0.00013835,2]
[351935478,1738851044321,-644.09,0.00013835,2]
[351935479,1738851044330,-1755.26,0.00013835,2]
[351935480,1738851044339,-500.0,0.00013835,2]
[351935481,1738851044348,-500.0,0.00013835,2]
[351935482,1738851044357,-3288.75,0.00013835,2]
[351935483,1738851044367,-1867.6,0.00013835,2]
[351935484,1738851044376,-500.0,0.00013835,2]
[351935485,1738851044388,-500.0,0.00013835,2]
[351935486,1738851044402,-875.81,0.00013835,2]
[351935487,1738851044413,-500.0,0.00013835,2]
[351935488,1738851044423,-793.45,0.00013835,2]
[351935489,1738851044432,-500.0,0.00013835,2]
[351935490,1738851044441,-500.0,0.00013835,2]
[351935491,1738851044452,-9267.35,0.00013835,2]
[351935492,1738851044461,-955.32,0.00013835,2]
[351935493,1738851044471,-500.0,0.00013835,2]
[351935494,1738851044480,-500.0,0.00013835,2]
[351935495,1738851044489,-2160.78,0.00013835,2]
[351935496,1738851044499,-500.0,0.00013835,2]
[351935497,1738851044508,-500.0,0.00013835,2]
[351935498,1738851044517,-500.0,0.00013835,2]
[351935499,1738851044527,-500.0,0.00013835,2]
[351935500,1738851044536,-1470.7,0.00013835,2]
[351935501,1738851044545,-703.94,0.00013835,2]
[351935502,1738851044555,-500.0,0.00013835,2]
[351935503,1738851044568,-500.0,0.00013835,2]
[351935504,1738851044584,-942.92,0.00013835,2]
[351935505,1738851044595,-1410.06,0.00013835,2]
[351935506,1738851044606,-500.0,0.00013835,2]
[351935507,1738851044615,-500.0,0.00013835,2]
[351935508,1738851044625,-13262.49839917,0.00013875,2]
[351935509,1738851044635,-434.1982094,0.0001389,2]
[351935510,1738851044644,-213.16247815,0.000139,2]
[351935511,1738851044654,-237.99775959,0.00013906,2]
[351935512,1738851044663,-614.09179907,0.00013931,2]
[351935513,1738851044673,-1000.0,0.00013956,2]
[351935514,1738851044682,-1000.0,0.00013969,2]
[351935515,1738851044691,-500.0,0.00013972,2]
[351935516,1738851044701,-711.94,0.00013972,2]
[351935517,1738851044711,-527.1,0.00013972,2]
[351935518,1738851044721,-500.0,0.00013972,2]
[351935519,1738851044731,-505.96697996,0.00013972,2]
[351935520,1738851044741,-500.0,0.00013972,2]
[351935521,1738851044751,-500.0,0.00013972,2]
[351935522,1738851044761,-500.0,0.00013972,2]
[351935523,1738851044770,-196.03949853,0.00013972,2]
[351935524,1738851044779,-755.1,0.00013972,2]
[351935525,1738851044789,-500.0,0.00013972,2]
[351935526,1738851044799,-376.87501903,0.00013972,2]
[351935527,1738851044808,-525.19,0.00013972,2]
[351935528,1738851044817,-500.0,0.00013972,2]
[351935529,1738851044827,-500.0,0.00013972,2]
[351935530,1738851044836,-1512.68,0.00013972,2]
[351935531,1738851044846,-500.0,0.00013972,2]
[351935532,1738851044855,-500.0,0.00013972,2]
[351935533,1738851044865,-500.0,0.00013972,2]
[351935534,1738851044875,-313.42094636,0.00013972,2]
[351935535,1738851044884,-500.0,0.00013972,2]
[351935536,1738851044894,-500.0,0.00013972,2]
[351935537,1738851044904,-500.0,0.00013972,2]
[351935538,1738851044913,-500.0,0.00013972,2]
[351935539,1738851044923,-500.0,0.00013972,2]
[351935540,1738851044933,-500.0,0.00013972,2]
[351935541,1738851044943,-510.12456232,0.00013972,2]
[351935542,1738851044954,-500.0,0.00013972,2]
[351935543,1738851044975,-500.0,0.00013972,2]
[351935544,1738851044985,-500.0,0.00013972,2]
[351935545,1738851044994,-520.19798974,0.00013972,2]